fUSD/lending_fUSD_20250124
["ID","MTS","AMOUNT","RATE_DAILY","PERIOD"]
[350241168,1737731433199,-533.63771459,0.00018369,2]
[350241170,1737731433210,-533.63771459,0.0001838,2]
[350241171,1737731433220,-1095.02813893,0.00018404,2]
[350241173,1737731433230,-15697.03376823,0.00018413,2]
[350241174,1737731433240,-15697.03376823,0.00018417,2]
[350241175,1737731433251,-200.0,0.00018427,2]
[350241176,1737731433262,-533.63771459,0.0001843,2]
[350241177,1737731433272,-533.63771459,0.00018439,2]
[350241178,1737731433282,-14277.27136727,0.00018445,2]
[350241179,1737731433294,-1419.76240096,0.00018445,2]
[350241180,1737731433306,-533.63771459,0.00018467,2]
[350241181,1737731433316,-767.31078058,0.00018468,2]
[350241183,1737731433328,-10425.0,0.00018468,2]
[350241185,1737731433340,-391.16567045,0.00018468,2]
[350241187,1737731433352,-4113.5573172,0.00018468,2]
[350241189,1737731433361,-500.0,0.000185,2]
[350241191,1737731433371,-150.0,0.00018565,2]
[350241193,1737731433381,-693.83527317,0.00018578,2]
[350241195,1737731433391,-660.352,0.00018578,2]
[350241197,1737731433402,-217.3001,0.00018578,2]
[350241199,1737731433412,-2010.1126,0.00018578,2]
[350241201,1737731433422,-1000.0,0.00018579,2]
[350241203,1737731433432,-2500.0,0.00018579,2]
[350241205,1737731433441,-3000.0,0.0001859,2]
[350241207,1737731433451,-417.2804024,0.000186,2]
[350241209,1737731433461,-267.7,0.0001866,2]
[350241227,1737731433632,-500.0,0.00018678,2]
[350241229,1737731433644,-500.0,0.00018678,2]
[350241231,1737731433655,-500.0,0.00018678,2]
[350241233,1737731433665,-512.68776609,0.00018678,2]
[350241235,1737731433675,-500.0,0.00018678,2]
[350241237,1737731433685,-241.04907397,0.00018678,2]
[350241240,1737731433695,-686.38,0.00018678,2]
[350241242,1737731433705,-500.0,0.00018678,2]
[350241244,1737731433715,-500.0,0.00018678,2]
[350241246,1737731433724,-811.69,0.00018678,2]
[350241248,1737731433734,-500.0,0.00018678,2]
[350241250,1737731433744,-539.57,0.00018678,2]
[350241252,1737731433754,-607.79,0.00018678,2]
[350241254,1737731433764,-500.0,0.00018678,2]
[350241256,1737731433773,-500.0,0.00018678,2]
[350241258,1737731433783,-500.0,0.00018678,2]
[350241260,1737731433793,-500.0,0.00018678,2]
[350241262,1737731433810,-500.0,0.00018678,2]
[350241264,1737731433820,-602.45,0.00018678,2]
[350241266,1737731433830,-500.0,0.00018678,2]
[350241268,1737731433840,-500.0,0.00018678,2]
[350241270,1737731433851,-500.0,0.00018678,2]
[350241272,1737731433860,-346.17331685,0.00018678,2]
[350241274,1737731433870,-500.0,0.00018678,2]
[350241276,1737731433881,-500.0,0.00018678,2]
[350241278,1737731433891,-500.0,0.00018678,2]
[350241280,1737731433901,-500.0,0.00018678,2]
[350241282,1737731433910,-500.0,0.00018678,2]
[350241284,1737731433920,-200.0,0.00018678,2]
[350241286,1737731433931,-500.0,0.00018678,2]
[350241287,1737731433944,-500.0,0.00018678,2]
[350241289,1737731433953,-500.0,0.00018678,2]
[350241291,1737731433963,-500.0,0.00018678,2]
[350241293,1737731433972,-500.0,0.00018678,2]
[350241295,1737731433982,-500.0,0.00018678,2]
[350241297,1737731433991,-500.0,0.00018678,2]
[350241299,1737731434001,-500.0,0.00018678,2]
[350241301,1737731434010,-500.0,0.00018678,2]
[350241303,1737731434019,-500.0,0.00018678,2]
[350241305,1737731434029,-500.0,0.00018678,2]
[350241307,1737731434043,-500.0,0.00018678,2]
[350241309,1737731434055,-267.08841891,0.00018678,2]
[350241311,1737731434075,-500.0,0.00018678,2]
[350241313,1737731434085,-500.0,0.00018678,2]
[350241315,1737731434095,-500.0,0.00018678,2]
[350241317,1737731434105,-676.97,0.00018678,2]
[350241319,1737731434114,-500.0,0.00018678,2]
[350241321,1737731434124,-500.0,0.00018678,2]
[350241323,1737731434133,-500.0,0.00018678,2]
[350241325,1737731434148,-500.0,0.00018678,2]
[350241327,1737731434157,-500.0,0.00018678,2]
[350241329,1737731434170,-500.0,0.00018678,2]
[350241331,1737731434179,-500.0,0.00018678,2]
[350241333,1737731434189,-500.0,0.00018678,2]
[350241335,1737731434200,-621.1,0.00018678,2]
[350241337,1737731434209,-500.0,0.00018678,2]
[350241339,1737731434219,-725.8,0.00018678,2]
[350241341,1737731434229,-585.52,0.00018678,2]
[350241343,1737731434239,-500.0,0.00018678,2]
[350241345,1737731434248,-500.0,0.00018678,2]
[350241347,1737731434258,-500.0,0.00018678,2]
[350241348,1737731434267,-500.0,0.00018678,2]
[350241350,1737731434276,-500.0,0.00018678,2]
[350241352,1737731434286,-896.05,0.00018678,2]
[350241354,1737731434295,-500.0,0.00018678,2]
[350241355,1737731434304,-500.0,0.00018678,2]
[350241356,1737731434314,-654.92,0.00018678,2]
[350241358,1737731434324,-500.0,0.00018678,2]
[350241360,1737731434333,-500.0,0.00018678,2]
[350241362,1737731434343,-500.0,0.00018678,2]
[350241364,1737731434354,-500.0,0.00018678,2]
[350241366,1737731434364,-843.48,0.00018678,2]
[350241367,1737731434373,-773.4,0.00018678,2]
[350241368,1737731434383,-500.0,0.00018678,2]
[350241369,1737731434393,-500.0,0.00018678,2]
[350241370,1737731434402,-500.0,0.00018678,2]
[350241371,1737731434411,-502.88005493,0.00018678,2]
[350241372,1737731434421,-500.0,0.00018678,2]
[350241373,1737731434430,-500.0,0.00018678,2]
[350241374,1737731434440,-500.0,0.00018678,2]
[350241375,1737731434449,-500.0,0.00018678,2]
[350241376,1737731434459,-194.44383279,0.00018678,2]
[350241377,1737731434468,-500.0,0.00018678,2]
[350241378,1737731434478,-500.0,0.00018678,2]
[350241379,1737731434487,-500.0,0.00018678,2]
[350241380,1737731434497,-500.0,0.00018678,2]
[350241381,1737731434507,-500.0,0.00018678,2]
[350241382,1737731434516,-500.0,0.00018678,2]
[350241383,1737731434525,-500.0,0.00018678,2]
[350241384,1737731434535,-500.0,0.00018678,2]
[350241385,1737731434544,-500.0,0.00018678,2]
[350241386,1737731434553,-500.0,0.00018678,2]
[350241387,1737731434564,-500.0,0.00018678,2]
[350241388,1737731434573,-1410.76,0.00018678,2]
[350241389,1737731434582,-500.0,0.00018678,2]
[350241390,1737731434592,-543.37,0.00018678,2]
[350241391,1737731434602,-500.0,0.00018678,2]
[350241392,1737731434611,-500.0,0.00018678,2]
[350241393,1737731434620,-500.0,0.00018678,2]
[350241394,1737731434629,-509.58870302,0.00018678,2]
[350241395,1737731434639,-175.41726744,0.00018678,2]
[350241396,1737731434648,-2885.36,0.00018678,2]
[350241397,1737731434657,-500.0,0.00018678,2]
[350241398,1737731434667,-91.39863321,0.00018678,2]
[350241400,1737731438321,-408.60136679,0.00018678,2]
[350241401,1737731438334,-1670.96,0.00018678,2]
[350241402,1737731438345,-500.0,0.00018678,2]
[350241403,1737731438358,-528.06,0.00018678,2]
[350241404,1737731438370,-795.54,0.00018678,2]
[350241405,1737731438382,-500.0,0.00018678,2]
[350241406,1737731438394,-500.0,0.00018678,2]
[350241407,1737731438406,-806.27945,0.00018678,2]
[350241408,1737731438418,-500.0,0.00018678,2]
[350241409,1737731438429,-500.0,0.00018678,2]
[350241410,1737731438440,-578.81,0.00018678,2]
[350241411,1737731438452,-500.0,0.00018678,2]
[350241412,1737731438464,-500.0,0.00018678,2]
[350241413,1737731438475,-500.0,0.00018678,2]
[350241414,1737731438488,-500.0,0.00018678,2]
[350241415,1737731438501,-895.76,0.00018678,2]
[350241416,1737731438514,-500.0,0.00018678,2]
[350241417,1737731438526,-500.0,0.00018678,2]
[350241418,1737731438539,-500.0,0.00018678,2]
[350241419,1737731438551,-500.0,0.00018678,2]
[350241420,1737731438564,-500.0,0.00018678,2]
[350241421,1737731438576,-500.0,0.00018678,2]
[350241422,1737731438588,-500.0,0.00018678,2]
[350241423,1737731438600,-500.0,0.00018678,2]
[350241424,1737731438612,-500.0,0.00018678,2]
[350241425,1737731438627,-548.45947309,0.00018678,2]
[350241426,1737731438642,-534.8,0.00018678,2]
[350241427,1737731438657,-500.0,0.00018678,2]
[350241428,1737731438675,-1083.52,0.00018678,2]
[350241429,1737731438688,-500.0,0.00018678,2]
[350241430,1737731438702,-500.0,0.00018678,2]
[350241431,1737731438715,-452.61533095,0.00018678,2]
[350241432,1737731438751,-47.38466905,0.00018678,2]
[350241433,1737731438764,-500.0,0.00018678,2]
[350241434,1737731438777,-500.0,0.00018678,2]
[350241435,1737731438789,-644.456178,0.00018678,2]
[350241436,1737731438804,-500.0,0.00018678,2]
[350241437,1737731438818,-500.0,0.00018678,2]
[350241438,1737731438830,-500.0,0.00018678,2]
[350241439,1737731438844,-605.55,0.00018678,2]
[350241440,1737731438856,-500.0,0.00018678,2]
[350241441,1737731438868,-204.76063522,0.00018678,2]
[350241442,1737731438881,-500.0,0.00018678,2]
[350241444,1737731438893,-814.58,0.00018678,2]
[350241446,1737731438904,-500.0,0.00018678,2]
[350241447,1737731438916,-500.0,0.00018678,2]
[350241448,1737731438928,-500.0,0.00018678,2]
[350241449,1737731438941,-500.0,0.00018678,2]
[350241451,1737731438953,-500.0,0.00018678,2]
[350241453,1737731438964,-627.41,0.00018678,2]
[350241454,1737731438974,-500.0,0.00018678,2]
[350241455,1737731438984,-500.0,0.00018678,2]
[350241456,1737731438995,-430.00651774,0.00018678,2]
[350241457,1737731439007,-922.92348226,0.00018678,2]
[350241458,1737731439017,-668.18,0.00018678,2]
[350241459,1737731439026,-649.19,0.00018678,2]
[350241460,1737731439035,-500.0,0.00018678,2]
[350241461,1737731439045,-500.0,0.00018678,2]
[350241462,1737731439264,-1898.92,0.00018678,2]
[350241463,1737731439286,-500.0,0.00018678,2]
[350241464,1737731439298,-2010.71,0.00018678,2]
[350241465,1737731439307,-806.11,0.00018678,2]
[350241466,1737731439316,-510.6,0.00018678,2]
[350241467,1737731439325,-500.0,0.00018678,2]
[350241468,1737731439334,-525.5,0.00018678,2]
[350241469,1737731439345,-500.0,0.00018678,2]
[350241470,1737731439354,-1100.95,0.00018678,2]
[350241471,1737731439363,-500.0,0.00018678,2]
[350241472,1737731439373,-819.39,0.00018678,2]
[350241473,1737731439383,-500.0,0.00018678,2]
[350241474,1737731439395,-500.0,0.00018678,2]
[350241475,1737731439404,-957.18,0.00018678,2]
[350241476,1737731439414,-657.92,0.00018678,2]
[350241477,1737731439424,-500.0,0.00018678,2]
[350241478,1737731439433,-529.19847714,0.00018678,2]
[350241479,1737731439443,-2740.83,0.00018678,2]
[350241480,1737731439452,-500.0,0.00018678,2]
[350241481,1737731439462,-1400.11,0.00018678,2]
[350241482,1737731439471,-826.09,0.00018678,2]
[350241483,1737731439480,-500.0,0.00018678,2]
[350241484,1737731439489,-665.07,0.00018678,2]
[350241485,1737731439499,-500.0,0.00018678,2]
[350241486,1737731439509,-786.31,0.00018678,2]
[350241487,1737731439518,-542.18,0.00018678,2]
[350241488,1737731439527,-500.0,0.00018678,2]
[350241489,1737731439536,-500.0,0.00018678,2]
[350241490,1737731439546,-881.88,0.00018678,2]
[350241491,1737731439555,-500.0,0.00018678,2]
[350241492,1737731439566,-1875.18,0.00018678,2]
[350241493,1737731439576,-746.07,0.00018678,2]
[350241494,1737731439585,-500.0,0.00018678,2]
[350241495,1737731439594,-2310.7,0.00018678,2]
[350241496,1737731439604,-500.0,0.00018678,2]
[350241497,1737731439613,-934.84,0.00018678,2]
[350241498,1737731439622,-500.0,0.00018678,2]
[350241499,1737731439631,-500.0,0.00018678,2]
[350241500,1737731439641,-3687.69,0.00018678,2]
[350241501,1737731439650,-490.2,0.00018678,2]
[350241502,1737731439659,-500.0,0.00018678,2]
[350241503,1737731439669,-2058.85,0.00018678,2]
[350241504,1737731439678,-942.76,0.00018678,2]
[350241505,1737731439687,-1298.84,0.00018678,2]
[350241506,1737731439697,-629.67,0.00018678,2]
[350241507,1737731439707,-1168.14,0.00018678,2]
[350241508,1737731439716,-3022.57,0.00018678,2]
[350241509,1737731439726,-727.97,0.00018678,2]
[350241510,1737731439736,-500.0,0.00018678,2]
[350241511,1737731439745,-500.0,0.00018678,2]
[350241512,1737731439755,-500.0,0.00018678,2]
[350241513,1737731439764,-1100.14,0.00018678,2]
[350241514,1737731439774,-791.12,0.00018678,2]
[350241515,1737731439783,-500.13163942,0.00018678,2]
[350241516,1737731439792,-2561.7,0.00018678,2]
[350241517,1737731439804,-500.0,0.00018678,2]
[350241518,1737731439815,-1055.52,0.00018678,2]
[350241519,1737731439824,-500.0,0.00018678,2]
[350241520,1737731439832,-8356.42,0.00018678,2]
[350241521,1737731439843,-696.34,0.00018678,2]
[350241522,1737731439852,-539.85,0.00018678,2]
[350241523,1737731439862,-500.0,0.00018678,2]
[350241524,1737731439871,-520.73,0.00018678,2]
[350241525,1737731439882,-246.2,0.00018679,2]
[350241526,1737731439892,-500.0,0.00018679,2]
[350241527,1737731439902,-500.0,0.00018679,2]
[350241528,1737731439911,-500.0,0.00018679,2]
[350241529,1737731439925,-500.0,0.00018679,2]
[350241530,1737731439935,-500.0,0.00018679,2]
[350241531,1737731439952,-500.0,0.00018679,2]
[350241532,1737731439961,-500.0,0.00018679,2]
[350241533,1737731439973,-500.0,0.00018679,2]
[350241534,1737731439983,-500.0,0.00018679,2]
[350241535,1737731439992,-620.23354892,0.00018679,2]
[350241536,1737731440002,-500.0,0.00018679,2]
[350241537,1737731440011,-530.57,0.00018679,2]
[350241538,1737731440020,-500.0,0.00018679,2]
[350241539,1737731440030,-500.0,0.00018679,2]
[350241540,1737731440039,-500.0,0.00018679,2]
[350241541,1737731440048,-500.0,0.00018679,2]
[350241542,1737731440058,-500.0,0.00018679,2]
[350241543,1737731440067,-500.0,0.00018679,2]
[350241544,1737731440077,-515.45,0.00018679,2]
[350241545,1737731440087,-500.0,0.00018679,2]
[350241546,1737731440096,-2442.30148657,0.00018679,2]
[350241548,1737731440106,-500.0,0.00018679,2]
[350241549,1737731440115,-500.0,0.00018679,2]
[350241550,1737731440125,-500.0,0.00018679,2]
[350241551,1737731440134,-500.0,0.00018679,2]
[350241552,1737731440144,-510.7119614,0.00018679,2]
[350241553,1737731440154,-500.0,0.00018679,2]
[350241554,1737731440163,-500.0,0.00018679,2]
[350241555,1737731440174,-500.0,0.00018679,2]
[350241556,1737731440184,-500.0,0.00018679,2]
[350241557,1737731440194,-500.0,0.00018679,2]
[350241558,1737731440206,-510.72815144,0.00018679,2]
[350241559,1737731440217,-500.0,0.00018679,2]
[350241560,1737731440229,-500.0,0.00018679,2]
[350241561,1737731440244,-500.0,0.00018679,2]
[350241562,1737731440258,-500.0,0.00018679,2]
[350241563,1737731440267,-500.0,0.00018679,2]
[350241564,1737731440277,-297.67993081,0.00018679,2]
[350241565,1737731440286,-500.0,0.00018679,2]
[350241566,1737731440295,-500.0,0.00018679,2]
[350241569,1737731440304,-500.0,0.00018679,2]
[350241570,1737731440314,-559.38937664,0.00018679,2]
[350241572,1737731440323,-198.94117875,0.00018679,2]
[350241573,1737731440332,-151.0,0.0001868,2]
[350241574,1737731440341,-151.0,0.0001868,2]
[350241575,1737731440351,-151.0,0.0001868,2]
[350241576,1737731440359,-517.47,0.00018684,2]
[350241577,1737731440368,-598.97,0.00018684,2]
[350241578,1737731440377,-500.0,0.00018684,2]
[350241579,1737731440387,-500.0,0.00018684,2]
[350241580,1737731440397,-7973.3265912,0.00018685,2]
[350241581,1737731440407,-500.0,0.00018697,2]
[350241582,1737731440417,-500.0,0.00018697,2]
[350241583,1737731440427,-308.20284933,0.00018697,2]
[350241584,1737731440437,-585.13,0.00018697,2]
[350241585,1737731440447,-546.8,0.00018697,2]
[350241586,1737731440456,-500.0,0.00018697,2]
[350241587,1737731440467,-258.36157831,0.00018697,2]
[350241588,1737731440477,-500.0,0.00018697,2]
[350241589,1737731440487,-500.0,0.00018697,2]
[350241590,1737731440497,-500.0,0.00018697,2]
[350241591,1737731440507,-500.0,0.00018697,2]
[350241592,1737731440517,-316.01487962,0.00018697,2]
[350241593,1737731440529,-500.0,0.00018697,2]
[350241594,1737731440540,-542.88,0.00018697,2]
[350241595,1737731440550,-500.0,0.00018697,2]
[350241596,1737731440561,-500.0,0.00018697,2]
[350241597,1737731440571,-500.0,0.00018697,2]
[350241598,1737731440582,-500.0,0.00018697,2]
[350241599,1737731440591,-500.0,0.00018697,2]
[350241600,1737731440601,-572.19,0.00018697,2]
[350241601,1737731440611,-675.4,0.00018697,2]
[350241602,1737731440621,-500.0,0.00018697,2]
[350241603,1737731440630,-636.5911757,0.00018697,2]
[350241604,1737731440640,-500.0,0.00018697,2]
[350241605,1737731440650,-500.0,0.00018697,2]
[350241606,1737731440659,-500.0,0.00018697,2]
[350241607,1737731440669,-500.0,0.00018697,2]
[350241608,1737731440678,-500.0,0.00018697,2]
[350241609,1737731440688,-570.52613023,0.00018697,2]
[350241610,1737731440698,-683.82,0.00018697,2]
[350241611,1737731440707,-706.36,0.00018697,2]
[350241612,1737731440717,-811.83,0.00018697,2]
[350241613,1737731440727,-500.0,0.00018697,2]
[350241614,1737731440736,-573.64,0.00018697,2]
[350241615,1737731440745,-500.0,0.00018697,2]
[350241616,1737731440755,-500.0,0.00018697,2]
[350241617,1737731440764,-512.41914742,0.00018697,2]
[350241618,1737731440774,-500.0,0.00018697,2]
[350241619,1737731440783,-878.91,0.00018697,2]
[350241620,1737731440793,-500.0,0.00018697,2]
[350241621,1737731440806,-546.81,0.00018697,2]
[350241622,1737731440817,-500.0,0.00018697,2]
[350241623,1737731440826,-500.0,0.00018697,2]
[350241624,1737731440836,-500.0,0.00018697,2]
[350241625,1737731440846,-500.0,0.00018697,2]
[350241626,1737731440856,-325.69494236,0.00018697,2]
[350241627,1737731440865,-500.0,0.00018697,2]
[350241628,1737731440875,-651.48,0.00018697,2]
[350241629,1737731440884,-362.55632567,0.00018697,2]
[350241630,1737731440893,-572.69,0.00018697,2]
[350241631,1737731440903,-520.34,0.00018697,2]
[350241632,1737731440912,-500.0,0.00018697,2]
[350241633,1737731440922,-698.22,0.00018697,2]
[350241634,1737731440931,-577.62,0.00018697,2]
[350241635,1737731440941,-500.0,0.00018697,2]
[350241636,1737731440951,-500.0,0.00018697,2]
[350241637,1737731440961,-500.0,0.00018697,2]
[350241638,1737731440971,-500.0,0.00018697,2]
[350241639,1737731440980,-531.12,0.00018697,2]
[350241640,1737731440990,-500.0,0.00018697,2]
[350241641,1737731440999,-500.0,0.00018697,2]
[350241642,1737731441009,-500.0,0.00018697,2]
[350241643,1737731441019,-500.0,0.00018697,2]
[350241645,1737731441029,-566.52,0.00018697,2]
[350241646,1737731441039,-500.0,0.00018697,2]
[350241648,1737731441048,-500.0,0.00018697,2]
[350241649,1737731441058,-500.0,0.00018697,2]
[350241650,1737731441068,-500.0,0.00018697,2]
[350241651,1737731441078,-500.0,0.00018697,2]
[350241652,1737731441088,-500.0,0.00018697,2]
[350241653,1737731441098,-500.0,0.00018697,2]
[350241654,1737731441108,-500.0,0.00018697,2]
[350241655,1737731441118,-500.0,0.00018697,2]
[350241656,1737731441128,-500.0,0.00018697,2]
[350241657,1737731441138,-424.12705576,0.00018697,2]
[350241658,1737731441148,-502.44612745,0.00018697,2]
[350241659,1737731441158,-502.65,0.00018697,2]
[350241660,1737731441168,-500.0,0.00018697,2]
[350241661,1737731441178,-977.81,0.00018697,2]
[350241662,1737731441188,-500.0,0.00018697,2]
[350241663,1737731441198,-500.0,0.00018697,2]
[350241664,1737731441207,-500.0,0.00018697,2]
[350241665,1737731441218,-500.0,0.00018697,2]
[350241666,1737731441228,-224.40944365,0.00018697,2]
[350241667,1737731441238,-500.0,0.00018697,2]
[350241668,1737731441248,-500.0,0.00018697,2]
[350241669,1737731441258,-512.2650066,0.00018697,2]
[350241670,1737731441268,-500.0,0.00018697,2]
[350241671,1737731441277,-500.0,0.00018697,2]
[350241672,1737731441287,-1297.52,0.00018697,2]
[350241673,1737731441296,-516.82,0.00018697,2]
[350241674,1737731441305,-1598.38,0.00018697,2]
[350241675,1737731441316,-639.93,0.00018697,2]
[350241676,1737731441326,-500.0,0.00018697,2]
[350241677,1737731441336,-948.34,0.00018697,2]
[350241678,1737731441346,-500.0,0.00018697,2]
[350241679,1737731441356,-1563.15,0.00018697,2]
[350241680,1737731441366,-323.24811252,0.00018697,2]
[350241681,1737731441375,-537.7,0.00018697,2]
[350241682,1737731441384,-199.70428428,0.00018697,2]
[350241683,1737731441394,-614.51,0.00018697,2]
[350241684,1737731441403,-500.0,0.00018697,2]
[350241685,1737731441412,-500.0,0.00018697,2]
[350241686,1737731441422,-500.0,0.00018697,2]
[350241687,1737731441431,-3576.25,0.00018697,2]
[350241688,1737731441441,-500.0,0.00018697,2]
[350241689,1737731441450,-1565.91,0.00018697,2]
[350241690,1737731441460,-500.0,0.00018697,2]
[350241691,1737731441469,-500.0,0.00018697,2]
[350241692,1737731441479,-2091.41,0.00018697,2]
[350241693,1737731441489,-500.0,0.00018697,2]
[350241694,1737731441498,-500.0,0.00018697,2]
[350241695,1737731441508,-500.0,0.00018697,2]
[350241696,1737731441517,-591.61125836,0.00018697,2]
[350241697,1737731441527,-1021.41,0.00018697,2]
[350241698,1737731441537,-500.0,0.00018697,2]
[350241699,1737731441547,-1290.64,0.00018697,2]
[350241700,1737731441557,-500.0,0.00018697,2]
[350241701,1737731441569,-2037.46,0.00018697,2]
[350241702,1737731441579,-500.0,0.00018697,2]
[350241703,1737731441588,-500.0,0.00018697,2]
[350241704,1737731441598,-500.0,0.00018697,2]
[350241705,1737731441607,-827.68,0.00018697,2]
[350241706,1737731441617,-500.0,0.00018697,2]
[350241707,1737731441627,-500.0,0.00018697,2]
[350241708,1737731441636,-500.0,0.00018697,2]
[350241709,1737731441646,-500.0,0.00018697,2]
[350241710,1737731441655,-627.81,0.00018697,2]
[350241711,1737731441664,-500.0,0.00018697,2]
[350241712,1737731441674,-500.0,0.00018697,2]
[350241713,1737731441683,-500.0,0.00018697,2]
[350241714,1737731441694,-500.0,0.00018697,2]
[350241715,1737731441703,-500.0,0.00018698,2]
[350241716,1737731441713,-1955.81,0.00018698,2]
[350241717,1737731441723,-500.0,0.00018698,2]
[350241718,1737731441732,-500.0,0.00018698,2]
[350241719,1737731441743,-500.0,0.00018698,2]
[350241720,1737731441753,-151.0,0.00018699,2]
[350241721,1737731441762,-151.0,0.00018699,2]
[350241722,1737731441772,-151.0,0.00018699,2]
[350241723,1737731441781,-693.83527317,0.00018701,2]
[350241724,1737731441791,-787.77,0.00018779,2]
[350241725,1737731441801,-500.0,0.00018779,2]
[350241726,1737731441812,-856.79,0.00018779,2]
[350241727,1737731441822,-500.0,0.00018779,2]
[350241728,1737731441831,-1129.34,0.00018779,2]
[350241729,1737731441840,-1608.78,0.00018779,2]
[350241730,1737731441850,-1682.91,0.00018779,2]
[350241731,1737731441860,-3355.46,0.00018779,2]
[350241732,1737731441869,-6031.0,0.00018779,2]
[350241733,1737731441881,-731.29,0.00018779,2]
[350241734,1737731441891,-500.0,0.00018779,2]
[350241735,1737731441900,-500.0,0.00018779,2]
[350241736,1737731441909,-686.16,0.00018779,2]
[350241737,1737731441919,-959.89,0.00018779,2]
[350241738,1737731441928,-680.59,0.00018779,2]
[350241739,1737731441939,-500.0,0.00018779,2]
[350241740,1737731441949,-1000.0,0.00018779,2]
[350241741,1737731441958,-500.0,0.00018779,2]
[350241742,1737731441968,-500.0,0.00018779,2]
[350241743,1737731441978,-457.59223554,0.00018779,2]
[350241744,1737731441998,-643.25932,0.00018779,2]
[350241745,1737731442009,-391.07443329,0.00018779,2]
[350241746,1737731442405,-168.32401117,0.00018779,2]
[350241747,1737731442415,-156929.30784179,0.0001878,2]
[350241748,1737731442425,-160.774936,0.0001878,2]
[350241749,1737731442437,-160.774936,0.0001878,2]
[350241750,1737731442446,-151.0,0.0001878,2]
[350241751,1737731442456,-151.0,0.0001878,2]
[350241752,1737731442465,-151.0,0.0001878,2]
[350241753,1737731442475,-198.94117872,0.0001879,2]
[350241754,1737731442485,-170.57070841,0.00018799,2]
[350241755,1737731442495,-171.34194232,0.000188,2]
[350241756,1737731442505,-16040.55855189,0.000188,2]
[350241757,1737731442515,-1598.38,0.00018812,2]
[350241758,1737731442524,-55324.64750748,0.00018812,2]
[350241759,1737731442534,-500.0,0.00018815,2]
[350241760,1737731442543,-151.0,0.00018815,2]
[350241761,1737731442553,-151.0,0.00018815,2]
[350241762,1737731442562,-500.0,0.00018815,2]
[350241763,1737731442572,-500.0,0.00018815,2]
[350241764,1737731442581,-686.38,0.00018815,2]
[350241765,1737731442739,-500.0,0.00018815,2]
[350241766,1737731442750,-500.0,0.00018815,2]
[350241767,1737731442760,-811.69,0.00018815,2]
[350241768,1737731442770,-500.0,0.00018815,2]
[350241769,1737731442779,-539.57,0.00018815,2]
[350241770,1737731442789,-607.79,0.00018815,2]
[350241771,1737731442800,-151.0,0.00018815,2]
[350241772,1737731442815,-500.0,0.00018815,2]
[350241773,1737731442825,-500.0,0.00018815,2]
[350241774,1737731442835,-602.45,0.00018815,2]
[350241775,1737731442845,-500.0,0.00018815,2]
[350241776,1737731442855,-151.0,0.00018815,2]
[350241777,1737731442865,-500.0,0.00018815,2]
[350241778,1737731442874,-630.95312315,0.00018815,2]
[350241779,1737731442885,-437.35339714,0.00018815,2]